Cogmind - Beta 15 @@@ ROGUE MODE // 2025.05.07 @ 15:23:04 Player: celerysam Result: Destroyed by P-80 Master with Gamma Rifle Performance ------------- Evolutions (7) 3500 Regions Visited (11) 2200 Robots Destroyed (76) 380 Value Destroyed (2445) 2445 Prototype IDs (27) 540 Alien Tech Used (0) 0 Bonus (0) 0 TOTAL SCORE: 9065 Bonus ------- None Cogmind --------- Core Integrity 0/1300 Matter 58/300 Energy 186/300 System Corruption 19% Temperature Cool (0) Movement Rolling (130) Ox2 Location -3/Testing Parts ------- > --- POWER (3) -------- (None) > --- PROPULSION (6) --- Centrium Wheel Centrium Wheel (fused) Faulty Electron Diverter > --- UTILITY (8) ------ Huge Storage Unit Compact Battery Experimental Optical Array Spectral Analyzer Advanced Signal Interpreter Experimental Signal Interpreter > --- WEAPON (4) ------- (None) > --- INVENTORY (25) --- Centrium Wheel Experimental Thermal Generator Structural Scanner Advanced Transmission Jammer Advanced System Shield Improved Remote Datajack Peak State ------------ > --- POWER ------------ Micro Fission Core Antimatter Reactor > --- PROPULSION ------- Nuclear Pulse Array Impulse Thruster Impulse Thruster Field Propulsion Array > --- UTILITY ---------- Compact Battery Experimental Optical Array Advanced Signal Interpreter ECM Suite Advanced Reaction Control System Improved Cloaking Device Hacking Suite > --- WEAPON ----------- Phase Gun Improved Remote Datajack Heavy Pick > --- INVENTORY -------- Light Nuclear Core Matter Compressor Structural Scanner Advanced Transmission Jammer Advanced System Shield [Rating: 107] Favorites ----------- Power Light Nuclear Core Engine Improved Deuterium Engine Power Core Light Nuclear Core Reactor Antimatter Reactor Propulsion Aerolev Unit Treads Medium Treads Leg Aluminum Leg Wheel Wheel Hover Unit Aerolev Unit Flight Unit Field Propulsion Array Utility ECM Suite Device ECM Suite Storage High-capacity Storage Unit Processor Advanced Signal Interpreter Hackware System Shield Protection Hardened Heavy Armor Plating Weapon Makeshift Laser Energy Gun Makeshift Laser Energy Cannon EM Pulse Cannon Ballistic Gun Hypervelocity Coil Gun Ballistic Cannon Light Cannon Launcher Rocket Array Special Weapon Improved Remote Datajack Impact Weapon Heavy Hammer Slashing Weapon Mining Claw Piercing Weapon Spear Special Melee Weapon Improved Datajack Build | -11 -10 -10 -8 -7 -6 -5 -5 -5 -4 -3 -3 ------- Run | Yrd Mat Sub Mat Fac Fac Fac Upp Upp Fac Res Tes Slots Evolved 14 | . . . 4 2 2 2 . . 2 2 . Power 2 | . . . . . 1 . . . . 1 . Propulsion 4 | . . . 2 1 1 . . . . . . Utility 6 | . . . 2 1 . 1 . . 1 1 . Weapon 2 | . . . . . . 1 . . 1 . . Parts Attached 151 | 5 18 19 13 23 17 7 1 1 24 18 5 Power 14 | 1 1 3 1 2 2 1 . . 2 1 . Engine 6 | 1 . 2 . 2 1 . . . . . . Core 6 | . 1 1 1 . 1 1 . . 1 . . Reactor 2 | . . . . . . . . . 1 1 . Propulsion 52 | 2 3 5 6 10 5 1 . . 8 11 1 Treads 10 | . . 1 3 . 3 1 . . 2 . . Leg 4 | 2 . . . . . . . . . 2 . Wheel 12 | . 3 4 3 . . . . . . 2 . Hover 13 | . . . . 10 2 . . . . 1 . Flight 13 | . . . . . . . . . 6 6 1 Utility 44 | 1 6 4 2 7 3 4 1 . 9 4 3 Device 19 | . 2 1 1 4 1 3 . . 4 2 1 Storage 7 | 1 1 . . 1 . . 1 . 1 . 2 Processor 6 | . . . . 1 . . . . 3 2 . Hackware 2 | . . . . 1 . . . . 1 . . Protection 10 | . 3 3 1 . 2 1 . . . . . Artifact . | . . . . . . . . . . . . Weapon 41 | 1 8 7 4 4 7 1 . 1 5 2 1 Energy Gun 17 | 1 3 3 2 1 3 . . . 2 1 1 Energy Cannon 1 | . . . . . . . . . 1 . . Ballistic Gun 2 | . . . . . 1 . . 1 . . . Ballistic Cannon 9 | . 3 1 1 1 1 1 . . . 1 . Launcher 2 | . . 1 . 1 . . . . . . . Special Weapon 3 | . . 1 . . . . . . 2 . . Impact Weapon 1 | . . 1 . . . . . . . . . Slashing Weapon 2 | . 1 . 1 . . . . . . . . Piercing Weapon 2 | . . . . 1 1 . . . . . . Special Melee Weapon 2 | . 1 . . . 1 . . . . . . Unidentified Prototypes 16 | . . . 2 3 2 . . . 2 5 2 Corrupted Parts 1 | . . . . . . . . . . 1 . System Corruption 10 | . . . . . . . . . . 10 . Parts Lost 59 | . . 11 . 3 8 1 2 . 9 22 3 Power 7 | . . 2 . . 1 . . . 2 2 . Propulsion 25 | . . 3 . . 5 1 1 . 4 11 . Utility 17 | . . 3 . 3 2 . 1 . 1 5 2 Weapon 10 | . . 3 . . . . . . 2 4 1 Highest Loss Streak 10 | . . 4 . 3 6 1 2 . 5 10 3 To Critical Strikes 4 | . . 1 . . . . . . 1 2 . Average Backups 14 | 5 17 17 19 16 14 14 14 14 5 5 5 Power 1 | . 1 1 3 1 1 1 1 1 . . . Propulsion 2 | 2 6 4 2 3 . 1 1 1 . . 1 Utility 4 | . 4 5 7 5 4 4 5 5 2 3 3 Weapon 4 | 1 4 3 4 4 7 7 6 6 . . . Tool/Special . | . . . . . . . . . . . . Unused Backups 46 | . 7 3 3 18 3 4 . . 5 . 3 Power 4 | . . . 1 3 . . . . . . . Propulsion 11 | . 4 1 . 3 . . . . 2 . 1 Utility 16 | . . 1 2 7 1 2 . . 1 . 2 Weapon 14 | . 3 1 . 4 2 2 . . 2 . . Tool/Special 1 | . . . . 1 . . . . . . . Average Slot Usage (%) 87 | . 97 88 91 90 90 92 85 82 76 45 48 Engine 1 | . 1 . 5 1 6 2 . . 2 . . Core 8 | . 12 12 5 5 5 8 11 11 6 . . Treads 10 | . . 1 14 15 16 17 17 17 5 . . Wheel 8 | . 25 26 14 2 . . . . . . 9 Hover 7 | . . . . 13 22 16 9 5 . 1 . Flight 1 | . . . . . . . . . 13 6 3 Device 8 | . 8 . 3 11 6 14 15 11 14 5 6 Storage 7 | . 14 12 5 4 6 5 6 11 5 2 5 Processor 1 | . . . . . . . . . 8 14 19 Hackware 1 | . . . . 1 6 2 . . 4 3 . Protection 6 | . 4 12 16 11 5 5 5 5 . . . Energy Gun 5 | . 8 3 11 8 3 5 5 5 3 . 2 Ballistic Cannon 8 | . 17 12 9 9 2 5 5 5 . 1 . Piercing Weapon 1 | . . . . . 3 4 3 . 4 1 . Peak Build Rating 107 | 5 13 52 63 73 61 76 72 67 107 87 82 Average Rating 50 | 3 11 17 61 60 55 71 69 67 83 62 72 On Entrance 47 | . 5 13 52 63 46 61 71 67 67 68 53 Naked Turns . | . . . . . . . . . . . . Heaviest Build 110 | 11 58 103 109 110 74 77 78 78 78 28 88 Greatest Support 92 | 20 20 50 92 92 76 76 76 76 76 32 48 Greatest Overweight (x) 5 | . 4 5 3 1 1 1 1 1 1 2 2 Average Overweight (x) . | . 1 1 1 . . . . 1 . . . Largest Inventory Capacity 25 | 8 20 20 20 20 15 15 15 15 15 5 25 Average Capacity 15 | 7 19 19 20 16 15 15 15 15 5 5 14 Most Carried 20 | 8 20 20 20 20 15 15 15 14 13 5 6 Average Carried 14 | 5 17 18 19 16 14 14 14 14 5 4 5 Final Capacity 25 | 8 20 20 20 15 15 15 15 15 5 5 25 Final Carried 20 | 7 20 18 20 15 15 15 14 14 5 5 6 Class Distribution -------------------- 45% | Mutant 20% | Infiltrator-Mutant 13% | Derelict-Tank 10% | Tank 5% | Scavenger-Mutant Dominant Class ---------------- Mutant | -10/Materials Mutant | -10/Subcaves Scavenger-Tank | -8/Materials Derelict-Tank | -7/Factory Mutant | -6/Factory Infiltrator-Mutant | -5/Factory Infiltrator-Mutant | -5/Upper Caves Tank | -5/Upper Caves Infiltrator-Mutant | -4/Factory Mutant | -3/Research Mutant | -3/Testing Resources | -11 -10 -10 -8 -7 -6 -5 -5 -5 -4 -3 -3 ----------- Run | Yrd Mat Sub Mat Fac Fac Fac Upp Upp Fac Res Tes Matter Collected 2749 | 250 178 539 124 258 543 147 287 . 378 45 . Remotely . | . . . . . . . . . . . . Salvage Created 2484 | . 301 267 92 210 774 262 106 . 396 76 . Parts 138 | . 20 20 7 18 37 9 . . 24 3 . Haulers Intercepted 6 | . 2 . 1 . 1 . . . 2 . . Recyclers Shooed 2 | . . . . 1 1 . . . . . . Parts Field Recycled . | . . . . . . . . . . . . Retrieved Matter . | . . . . . . . . . . . . Parts Self-Destructed 13 | . . 9 . . . . 4 . . . . Prevented 2 | . . 2 . . . . . . . . . Kills | -11 -10 -10 -8 -7 -6 -5 -5 -5 -4 -3 -3 ------- Run | Yrd Mat Sub Mat Fac Fac Fac Upp Upp Fac Res Tes Combat Hostiles Destroyed 58 | . 4 10 5 8 15 6 3 . 5 2 . Melee 13 | . . . . 3 1 3 . . 4 2 . Guns 9 | . 2 . 1 2 1 2 . . 1 . . Cannons 15 | . 2 7 2 3 . 1 . . . . . AOE 17 | . . 1 2 . 11 . 3 . . . . Classes Destroyed 13 | . 4 2 1 1 3 2 . . . . . Worker 4 | . 1 . . 1 1 . . . 1 . . Hauler 6 | . 2 . 1 . 1 . . . 2 . . Recycler 2 | . . . . . 2 . . . . . . Operator 1 | . . . . . . 1 . . . . . Watcher 5 | . 2 . . 1 1 1 . . . . . Swarmer 23 | . . . 4 7 3 4 . . 3 2 . Cutter 3 | . . . . . 3 . . . . . . Grunt 12 | . 4 . . . 5 1 1 . 1 . . Brawler 2 | . . . . . . 1 1 . . . . Sentry 6 | . . 1 1 . 3 . 1 . . . . Programmer 2 | . . . . 1 . . . . 1 . . Heavy 1 | . . . . . 1 . . . . . . Subdweller 9 | . . 9 . . . . . . . . . Best Kill Streak 12 | . 3 2 4 5 12 5 3 . 2 2 . Combat Bots Only 8 | . 2 2 4 3 8 5 3 . 2 2 . Max Kills in Single Turn 5 | . 2 1 3 1 5 1 1 . 1 1 . Gunslinging . | . . . . . . . . . . . . Exploded 3 | . . 1 2 . 3 . 1 . . . . Melee 1 | . . . . 1 1 1 . . 1 1 . Uniques/NPCs Destroyed . | . . . . . . . . . . . . Combat | -11 -10 -10 -8 -7 -6 -5 -5 -5 -4 -3 -3 -------- Run | Yrd Mat Sub Mat Fac Fac Fac Upp Upp Fac Res Tes Hostile Shots Fired 881 | . 19 68 19 64 161 46 24 . 146 297 37 Missed 317 | . 6 17 1 21 68 5 5 . 55 131 8 Hits 564 | . 13 51 18 43 93 41 19 . 91 166 29 Melee 6 | . . . . . . 2 2 . . 2 . Projectile 558 | . 13 51 18 43 93 39 17 . 91 164 29 AOE 2 | . . . . . 2 . . . . . . Critical Strikes 25 | . . 2 . . 2 . 2 . 3 11 5 Part Disruptions 1 | . . . . . . . . . 1 . . Damage Taken 10300 | . 192 1204 199 624 1394 714 590 50 1666 3066 601 Core 2275 | . 15 232 . 50 199 81 35 . 350 1145 168 Absorbed by Shields . | . . . . . . . . . . . . Redirected to Shielding 212 | . . . 7 98 107 . . . . . . Ignored by Resistances 10 | . . . 10 . . . . . . . . Core Remaining (%) 75 | 100 . 1 100 92 76 . . 88 69 . . Volleys Fired 181 | . 22 44 7 20 46 13 6 . 11 10 2 Largest 4 | . 2 2 4 2 2 2 3 . 1 1 1 Hottest 170 | . 80 80 170 100 110 107 152 . 88 54 88 Shots Fired 304 | . 44 72 28 37 56 25 17 2 11 10 2 Gun 122 | . 18 7 14 12 39 13 6 . 11 . 2 Cannon 167 | . 26 64 12 25 11 12 6 1 . 10 . Launcher 15 | . . 1 2 . 6 . 5 1 . . . Special . | . . . . . . . . . . . . Kinetic 168 | . 26 64 12 25 12 12 6 1 . 10 . Thermal 44 | . 7 . 14 12 . . . . 9 . 2 Explosive 15 | . . 1 2 . 6 . 5 1 . . . Electromagnetic 77 | . 11 7 . . 38 13 6 . 2 . . Robot Hit Streak 14 | . 4 14 14 8 5 4 3 . 9 1 3 Robot Miss Streak 5 | . 4 2 2 4 5 4 2 . 2 5 . Penetration Max 1 | . . . . . . 1 . . . . . Secondary Targets 1 | . 1 . . . . . . . . . . Max Gunslinging Chain 1 | . 1 . . . . . . . . . . Shots Hit Robots 211 | . 24 56 16 24 44 15 10 . 15 5 2 Core Hits 159 | . 12 17 7 14 68 11 17 . 11 2 . Critical Kills . | . . . . . . . . . . . . Critical Parts Destroyed 1 | . . 1 . . . . . . . . . Critical Strikes 11 | . 1 2 1 2 2 . . . 2 1 . Burn 3 | . . . 1 1 . . . . 1 . . Blast 3 | . 1 1 . . 1 . . . . . . Smash 1 | . . 1 . . . . . . . . . Impale 4 | . . . . 1 1 . . . 1 1 . Melee Attacks 82 | . 1 14 . 9 11 9 . . 27 11 . Impact 14 | . . 14 . . . . . . . . . Slashing 1 | . 1 . . . . . . . . . . Piercing 65 | . . . . 9 9 9 . . 27 11 . Sneak Attacks 5 | . . . . . 3 . . . 2 . . Combat Hostiles 2 | . . . . . 2 . . . . . . Follow-up Attacks . | . . . . . . . . . . . . Damage Inflicted 6798 | . 459 1089 496 603 2263 547 574 . 501 212 54 Guns 1509 | . 170 129 151 167 426 123 81 . 208 . 54 Cannons 2169 | . 289 706 173 290 260 292 65 . . 94 . Explosions 1990 | . . 42 172 . 1348 . 428 . . . . Melee 1081 | . . 212 . 117 229 132 . . 293 98 . Ramming 49 | . . . . 29 . . . . . 20 . Kinetic 2187 | . 289 706 173 290 278 292 65 . . 94 . Thermal 664 | . 67 42 151 167 . . . . 183 . 54 Explosive 1948 | . . . 172 . 1348 . 428 . . . . Electromagnetic 869 | . 103 129 . . 408 123 81 . 25 . . Impact 212 | . . 212 . . . . . . . . . Slashing . | . . . . . . . . . . . . Piercing 869 | . . . . 117 229 132 . . 293 98 . Highest Corruption 19 | . 2 2 . . 2 . 4 4 1 19 19 Average Corruption 4 | . 2 2 . . 1 . 4 4 1 15 19 Corruption Purged . | . . . . . . . . . . . . Corruption Blocked . | . . . . . . . . . . . . Effects 73 | . 4 17 . . 8 . 6 14 2 12 10 Message Errors 18 | . 1 5 . . 1 . 4 3 1 . 3 Matter Fused 15 | . 2 3 . . 3 . 1 2 1 2 1 Heat Flow Errors 6 | . . . . . 1 . 1 1 . 2 1 Energy Discharges 4 | . . 1 . . . . . 2 . . 1 Parts Rejected 1 | . . 1 . . . . . . . . . Parts Fused 2 | . . 1 . . . . . . . . 1 Data Loss (minor) 12 | . 1 4 . . 1 . . 3 . 2 1 Data Loss (major) 3 | . . 1 . . . . . 1 . 1 . Misfires 4 | . . 1 . . . . . 2 . 1 . Alerts 1 | . . . . . 1 . . . . . . Misdirections 5 | . . . . . . . . . . 3 2 Weapon Failures 2 | . . . . . 1 . . . . 1 . Overload Shots . | . . . . . . . . . . . . Overflow Damage 218 | . . 67 . 17 54 10 . . . 70 . Projectiles 82 | . . . . . 48 . . . . 34 . Explosions 6 | . . . . . 6 . . . . . . Melee 130 | . . 67 . 17 . 10 . . . 36 . Knockbacks 21 | . . 7 . 6 5 1 . . . 2 . Impact 1 | . . 1 . . . . . . . . . Kinetic 20 | . . 6 . 6 5 1 . . . 2 . Secondary . | . . . . . . . . . . . . Self-Inflicted Damage 204 | . . . . 14 22 . 108 51 . 9 . Shots 9 | . . . . . 2 . 5 2 . . . Rammed 11 | . . . . 5 . . . . . 6 . Targets Rammed 11 | . . . . 5 . . . . . 6 . Kicked . | . . . . . . . . . . . . Crushed . | . . . . . . . . . . . . Highest Temperature 449 | . 153 . 449 72 353 414 342 156 232 241 146 Average Temperature 108 | . 53 . 162 38 111 127 145 57 87 95 48 Received Heat Transfer 1242 | . 111 222 45 . 297 54 63 . 117 145 188 Effects 7 | . . . 3 . . 4 . . . . . Shutdowns 4 | . . . 2 . . 2 . . . . . Matter Decay 2 | . . . 1 . . 1 . . . . . Damage (minor) 1 | . . . . . . 1 . . . . . Siege Activations . | . . . . . . . . . . . . Martial Activations . | . . . . . . . . . . . . Shielding Activations . | . . . . . . . . . . . . Robots Disrupted 2 | . . . . . 2 . . . . . . Combat Hostiles 2 | . . . . . 2 . . . . . . Robots Corrupted 4 | . . 2 . . 2 . . . . . . Combat Hostiles 4 | . . 2 . . 2 . . . . . . Parts Fried 6 | . . 4 . . 2 . . . . . . Impact Corruptions 3 | . . 3 . . . . . . . . . Robots Melted . | . . . . . . . . . . . . Combat Hostiles . | . . . . . . . . . . . . Parts Melted 3 | . . . 1 2 . . . . . . . Heat Transferred 1421 | . 150 50 407 407 . . . . 333 . 74 Parts Sabotaged . | . . . . . . . . . . . . Parts Stolen . | . . . . . . . . . . . . Parts Stripped . | . . . . . . . . . . . . Power Chain Reactions 1 | . . 1 . . . . . . . . . Alert | -11 -10 -10 -8 -7 -6 -5 -5 -5 -4 -3 -3 ------- Run | Yrd Mat Sub Mat Fac Fac Fac Upp Upp Fac Res Tes Maximum Alert Level . | . . . . . . . . . . . . Low Security (%) 100 | 100 100 . 100 100 100 100 . . 100 100 100 Level 1 . | . . . . . . . . . . . . Level 2 . | . . . . . . . . . . . . Level 3 . | . . . . . . . . . . . . Level 4 . | . . . . . . . . . . . . Level 5 . | . . . . . . . . . . . . High Security . | . . . . . . . . . . . . Max Security . | . . . . . . . . . . . . Peak Influence 174 | . 50 . 108 66 174 86 . . 50 55 . Initial 30 | . . . . . 30 11 . . . . . Average 17 | . 5 . 41 6 54 9 . . 10 11 . Influence Increases 1605 | . 133 20 155 212 456 168 60 . 168 233 . Destroy 0b10 Robot/C 980 | . 80 20 100 160 300 120 60 . 100 40 . Destroy 0b10 Robot/NC 90 | . 25 . 5 10 25 10 . . 15 . . Destroy Leader 202 | . 28 . 22 32 74 22 . . 14 10 . Successful Hack 13 | . . . . 5 . 8 . . . . . Disable Machine 30 | . . . 15 . 15 . . . . . . Destroy Structure 110 | . . . 13 5 42 8 . . 24 18 . Partial Spotted 30 | . . . . . . . . . 15 15 . Lose Combat Pursuer 150 | . . . . . . . . . . 150 . Influence Decreases 1605 | . 133 20 155 150 495 129 122 . 168 233 . Entered New Map 68 | . . . . . 32 12 24 . . . . Time Decay 1170 | . 133 20 155 120 371 87 78 . 130 76 . Lost Part 335 | . . . . 30 80 10 20 . 38 157 . Lost Ally 32 | . . . . . 12 20 . . . . . Squads Dispatched 17 | . . . . 2 4 2 . . 5 3 1 Investigation 1 | . . . . . . . . . 1 . . Extermination 8 | . . . . 2 1 2 . . 2 1 . Reinforcement 8 | . . . . . 3 . . . 2 2 1 Assault . | . . . . . . . . . . . . Garrison . | . . . . . . . . . . . . Intercept . | . . . . . . . . . . . . Searches Triggered . | . . . . . . . . . . . . Construction Impeded . | . . . . . . . . . . . . Haulers Reinforced 2 | . . . . . 1 . . . 1 . . Active Scanning Responses . | . . . . . . . . . . . . Cargo Convoy Interrupts . | . . . . . . . . . . . . Stealth | -11 -10 -10 -8 -7 -6 -5 -5 -5 -4 -3 -3 --------- Run | Yrd Mat Sub Mat Fac Fac Fac Upp Upp Fac Res Tes Distress Signals 5 | . 1 . . . . . . . 3 1 . Communications Jammed . | . . . . . . . . . . . . Distress Signals . | . . . . . . . . . . . . Times Spotted 170 | . 15 12 5 16 30 13 5 . 31 35 8 Peak Tracking Total 12 | . 3 2 4 4 9 4 4 . 9 12 5 Tactical Retreats 29 | . . 2 . . 9 2 1 . 10 5 . Traps | -11 -10 -10 -8 -7 -6 -5 -5 -5 -4 -3 -3 ------- Run | Yrd Mat Sub Mat Fac Fac Fac Upp Upp Fac Res Tes Traps Triggered 7 | . 2 2 . 1 . . . . 1 1 . Indirectly . | . . . . . . . . . . . . Trap Hack Attempts . | . . . . . . . . . . . . Triggered . | . . . . . . . . . . . . Disarmed . | . . . . . . . . . . . . Reprogrammed . | . . . . . . . . . . . . Reused . | . . . . . . . . . . . . Traps Extracted . | . . . . . . . . . . . . Installed 4 | . . 2 . . . . 2 . . . . Triggered . | . . . . . . . . . . . . Machines | -11 -10 -10 -8 -7 -6 -5 -5 -5 -4 -3 -3 ---------- Run | Yrd Mat Sub Mat Fac Fac Fac Upp Upp Fac Res Tes Machines Disabled 3 | . . 1 1 . 1 . . . . . . Max in Single Turn 1 | . . 1 1 . . . . . . . . Machines Repaired . | . . . . . . . . . . . . Machines Dismantled . | . . . . . . . . . . . . Machines Sabotaged . | . . . . . . . . . . . . Overloaded Fab Kills . | . . . . . . . . . . . . Hacking | -11 -10 -10 -8 -7 -6 -5 -5 -5 -4 -3 -3 --------- Run | Yrd Mat Sub Mat Fac Fac Fac Upp Upp Fac Res Tes Machines Accessed 13 | . . 1 1 5 3 1 . . 1 1 . Terminals 6 | . . . 1 3 1 1 . . . . . Fabricators 1 | . . . . 1 . . . . . . . Repair Stations 2 | . . . . . . . . . 1 1 . Recycling Units 3 | . . . . 1 2 . . . . . . Scanalyzers . | . . . . . . . . . . . . Garrison Access . | . . . . . . . . . . . . Total Hacks 22 | . . 1 2 9 3 2 . . 4 1 . Successful 9 | . . 1 . 5 2 1 . . . . . Failed 13 | . . . 2 4 1 1 . . 4 1 . Catastrophic 1 | . . . 1 . . . . . . . . Database Lockouts . | . . . . . . . . . . . . Manual 2 | . . . . 1 1 . . . . . . Terminals 12 | . . . 2 7 1 2 . . . . . Fabricators 1 | . . . . 1 . . . . . . . Repair Stations 5 | . . . . . . . . . 4 1 . Recycling Units 3 | . . . . 1 2 . . . . . . Scanalyzers . | . . . . . . . . . . . . Garrison Access . | . . . . . . . . . . . . Terminal Hacks 4 | . . 1 . 2 . 1 . . . . . Record 2 | . . . . 1 . 1 . . . . . Alert Level 1 | . . . . 1 . . . . . . . Proto ID Catalog 1 | . . 1 . . . . . . . . . Fabricator Hacks 1 | . . . . 1 . . . . . . . Network Status 1 | . . . . 1 . . . . . . . Repair Station Hacks . | . . . . . . . . . . . . Recycling Unit Hacks 3 | . . . . 1 2 . . . . . . Report Inventory 2 | . . . . . 2 . . . . . . Retrieve Matter 1 | . . . . 1 . . . . . . . Scanalyzer . | . . . . . . . . . . . . Garrison Access Hacks . | . . . . . . . . . . . . Unauthorized Hacks 1 | . . . . 1 . . . . . . . Terminals 1 | . . . . 1 . . . . . . . Botnet 1 | . . . . 1 . . . . . . . Fabricators . | . . . . . . . . . . . . Repair Stations . | . . . . . . . . . . . . Recycling Units . | . . . . . . . . . . . . Scanalyzers . | . . . . . . . . . . . . Garrison Access . | . . . . . . . . . . . . Data Cores Recovered 1 | . . . . . . 1 . . . . . Used . | . . . . . . . . . . . . Hacking Detections 8 | . . . 1 3 1 1 . . 1 1 . Full Trace Events 2 | . . . 1 . . . . . 1 . . Feedback Events . | . . . . . . . . . . . . Feedback Blocked . | . . . . . . . . . . . . Robot Schematics Acquired . | . . . . . . . . . . . . Robots Built . | . . . . . . . . . . . . Authchips . | . . . . . . . . . . . . Time . | . . . . . . . . . . . . Total Robot Build Rating . | . . . . . . . . . . . . Part Schematics Acquired . | . . . . . . . . . . . . Parts Built . | . . . . . . . . . . . . Authchips . | . . . . . . . . . . . . Time . | . . . . . . . . . . . . Total Part Build Rating . | . . . . . . . . . . . . Parts Repaired . | . . . . . . . . . . . . Time . | . . . . . . . . . . . . Parts Recycled . | . . . . . . . . . . . . Recycled Matter . | . . . . . . . . . . . . Retrieved Matter 152 | . . . . 152 . . . . . . . Retrieved Components . | . . . . . . . . . . . . Parts Scanalyzed . | . . . . . . . . . . . . Part Schematics Acquired . | . . . . . . . . . . . . Parts Damaged . | . . . . . . . . . . . . Bothacking | -11 -10 -10 -8 -7 -6 -5 -5 -5 -4 -3 -3 ------------ Run | Yrd Mat Sub Mat Fac Fac Fac Upp Upp Fac Res Tes Used RIF Installer . | . . . . . . . . . . . . Robots Hacked . | . . . . . . . . . . . . Non-combat . | . . . . . . . . . . . . Combat . | . . . . . . . . . . . . Robot Hacks Applied . | . . . . . . . . . . . . Relay Couplers Released . | . . . . . . . . . . . . Fabnet Peak Effective % . | . . . . . . . . . . . . Robots Rewired 1 | . . . . . 1 . . . . . . Allies Hacked . | . . . . . . . . . . . . Hacks Repelled . | . . . . . . . . . . . . Allies | -11 -10 -10 -8 -7 -6 -5 -5 -5 -4 -3 -3 -------- Run | Yrd Mat Sub Mat Fac Fac Fac Upp Upp Fac Res Tes Total Allies 1 | . . . . . 1 . . . . . . Largest Group 1 | . . . . . 1 . . . . . . Highest-Rated Group 29 | . . . . . 29 . . . . . . Highest-Rated Ally 29 | . . . . . 29 . . . . . . Total Orders . | . . . . . . . . . . . . Ally Attacks 1 | . . . . . 1 . . . . . . Total Damage . | . . . . . . . . . . . . Kills . | . . . . . . . . . . . . Allies Corrupted . | . . . . . . . . . . . . Allies Melted . | . . . . . . . . . . . . Intel | -11 -10 -10 -8 -7 -6 -5 -5 -5 -4 -3 -3 ------- Run | Yrd Mat Sub Mat Fac Fac Fac Upp Upp Fac Res Tes Active Infowar (turns) 5487 | . 353 6 . 393 1139 794 1067 653 568 330 184 Optics 1268 | . . 6 . 219 . . . . 529 330 184 Structural 1033 | . . . . 393 11 301 . . 328 . . Cloaking 202 | . . . . . . . . . 202 . . Jamming 1215 | . . . . . . 457 758 . . . . ECM 4618 | . 353 . . 6 1139 794 1067 653 568 38 . Robot Analysis Total . | . . . . . . . . . . . . Derelict Logs Recovered 3 | . . 2 . . . . . 1 . . . Drone Launches 10 | . . . . . . 9 1 . . . . Drone Recoveries 5 | . . . . . . 5 . . . . . Exploration | -11 -10 -10 -8 -7 -6 -5 -5 -5 -4 -3 -3 ------------- Run | Yrd Mat Sub Mat Fac Fac Fac Upp Upp Fac Res Tes Turns Passed 9462 | 67 1288 1442 380 1539 1150 794 1067 653 568 330 184 Spaces Moved 6660 | 50 821 1085 200 1217 697 405 574 269 755 425 162 Core 21 | 11 . . . . . . . . . 10 . Treads 2292 | . . . 62 442 513 405 574 269 27 . . Legs 110 | 39 60 . . . . . . . . 11 . Wheels 2182 | . 761 1085 138 . . . . . . 36 162 Hover 1034 | . . . . 775 184 . . . . 75 . Flight 1021 | . . . . . . . . . 728 293 . Fastest Speed 28 | 50 110 107 113 40 36 163 163 243 28 37 90 Average Speed 119 | 104 110 111 156 112 136 167 180 243 51 54 106 Slowest Speed 245 | 120 140 155 240 240 240 243 243 243 245 150 130 Overloaded Moves . | . . . . . . . . . . . . Propulsion Burnouts . | . . . . . . . . . . . . Robots Hopped 8 | . . . . . . . . . 3 5 . Potential Cave-ins . | . . . . . . . . . . . . Cave-ins Triggered . | . . . . . . . . . . . . Exploration Rate (%) 34 | 4 99 75 18 20 22 12 68 24 30 15 27 Regions Visited 11 Branch Regions 4 Pre-discovered Areas . | . . . . . . . . . . . . Known Exits Taken 2 | . . 1 . . . . . . 1 . . Unknown Exits Taken 9 | 1 1 . 1 1 1 1 1 1 . 1 . Scrap Searched 3 | . . 2 . . . . 1 . . . . Spaces Dug 22 | . . . . 4 3 . . . 12 3 . Terrain Destroyed 259 | . . 9 20 5 73 4 93 35 12 8 . Melee 22 | . . . . 4 3 . . . 12 3 . Projectile 20 | . . . . 1 3 4 6 1 . 5 . AOE 217 | . . 9 20 . 67 . 87 34 . . . Terrain Rammed . | . . . . . . . . . . . . Walls Destroyed . | . . . . . . . . . . . . Machines Disabled . | . . . . . . . . . . . . Actions | -11 -10 -10 -8 -7 -6 -5 -5 -5 -4 -3 -3 --------- Run | Yrd Mat Sub Mat Fac Fac Fac Upp Upp Fac Res Tes Total 7721 | 63 1156 1224 254 1347 816 487 590 269 868 477 170 Wait 330 | . 244 14 2 9 3 29 5 . 14 10 . Move 6633 | 49 820 1084 199 1216 696 404 573 268 748 414 162 Hop 8 | . . . . . . . . . 3 5 . Pick Up 159 | 9 30 35 16 30 16 10 1 . 10 1 1 Fast Attach 64 | 3 2 2 1 14 3 3 . . 13 18 5 Attach 54 | 2 2 19 6 3 13 2 1 . 5 1 . Detach 9 | . . 1 . . 5 . . . 3 . . Swap 70 | . 17 3 9 9 14 4 1 1 12 . . Drop 116 | . 18 6 14 32 9 13 1 . 22 1 . Fire 181 | . 22 44 7 20 46 13 6 . 11 10 2 Melee 82 | . 1 14 . 9 11 9 . . 27 11 . Ram 11 | . . . . 5 . . . . . 6 . Kick . | . . . . . . . . . . . . Crush . | . . . . . . . . . . . . Escape Stasis . | . . . . . . . . . . . . Rewire . | . . . . . . . . . . . . Trap 4 | . . 2 . . . . 2 . . . . Miscellaneous . | . . . . . . . . . . . . Route ------- -11/Scrapyard -10/Materials (discovered 5 exits: [*Mat x3] / [*Min] / *Sub) -10/Subcaves (discovered 2 exits: *Mat x2) -8/Materials -7/Factory -6/Factory -5/Factory -5/Upper Caves -5/Upper Caves -4/Factory -3/Research -3/Testing History --------- Turn | Location | Event 20 | -11/Scrapyard | Discovered new exit (range 14) 68 | -11/Scrapyard | Entered Materials 265 | -10/Materials | Discovered new exit (range 16) 316 | -10/Materials | Build established: Mutant 406 | -10/Materials | Discovered new exit (range 7) 628 | -10/Materials | Discovered new exit (range 5) 1176 | -10/Materials | Discovered new exit (range 10) 1340 | -10/Materials | Discovered new exit (range 6) 1356 | -10/Materials | Entered Subcaves 1358 | -10/Subcaves | Identified exit to Materials 1504 | -10/Subcaves | Shifting Twisted Machinery released Piercing Trap 1509 | -10/Subcaves | Shifting Twisted Machinery released Riot Gun 1571 | -10/Subcaves | Shifting Twisted Machinery released Scrap Shield 1709 | -10/Subcaves | Shifting Twisted Machinery released Battle Cannon 1709 | -10/Subcaves | Lost 4 parts (2p1n1u) 1975 | -10/Subcaves | Visited 4L-MR0's lab 1988 | -10/Subcaves | Found Tower Shield 2155 | -10/Subcaves | Core integrity fell below 50% 2195 | -10/Subcaves | Lost 3 parts (1n1u1w) 2482 | -10/Subcaves | Core integrity fell below 20% 2510 | -10/Subcaves | Lost 4 parts (1n1u2w) 2530 | -10/Subcaves | A swath of the cavern ceiling suddenly collapsed 2581 | -10/Subcaves | Attached Tower Shield, gained temporary slots: Power, Propulsion x2, Utility x2, Weapon x2 2798 | -10/Subcaves | Entered Materials 2798 | -8/Materials | Evolved 4 slots: Propulsion x2, Utility x2 3167 | -8/Materials | Discovered new exit (range 5) 3178 | -8/Materials | Entered Factory 3178 | -7/Factory | Evolved 2 slots: Propulsion x1, Utility x1 3327 | -7/Factory | Build established: Derelict-Tank 4313 | -7/Factory | Lost 3 parts (3u) 4576 | -7/Factory | Found Prototype Launcher 4577 | -7/Factory | Identified Rocket Array 4599 | -7/Factory | Build established: Mutant 4709 | -7/Factory | Discovered new exit (range 5) 4717 | -7/Factory | Entered another Factory area 4717 | -6/Factory | Evolved 2 slots: Power x1, Propulsion x1 4860 | -6/Factory | Destroyed 8 combat bots 4862 | -6/Factory | Lost 6 parts (1p4n1u) 5641 | -6/Factory | Discovered new exit (range 15) 5867 | -6/Factory | Entered another Factory area 5867 | -5/Factory | Evolved 2 slots: Utility x1, Weapon x1 6196 | -5/Factory | Build established: Infiltrator-Mutant 6520 | -5/Factory | Discovered new exit (range 4) 6661 | -5/Factory | Entered Upper Caves 7389 | -5/Upper Caves | Attracted the attention of an 0b10 checkpoint 7708 | -5/Upper Caves | Build established: Tank 7716 | -5/Upper Caves | Discovered new exit (range 5) 7728 | -5/Upper Caves | Entered another Upper Caves area 7869 | -5/Upper Caves | Discovered new exit (range 13) 7988 | -5/Upper Caves | Learned Factory security intel 8381 | -5/Upper Caves | Entered Factory 8381 | -4/Factory | Evolved 2 slots: Utility x1, Weapon x1 8704 | -4/Factory | Lost 5 parts (1p2n1u1w) 8919 | -4/Factory | Spotted B-86 Titan 8944 | -4/Factory | Discovered new exit (range 16) 8949 | -4/Factory | Identified exit to Research 8949 | -4/Factory | Entered Research 8949 | -3/Research | Evolved 2 slots: Power x1, Utility x1 9083 | -3/Research | System corruption reached 10% 9096 | -3/Research | Lost 8 parts (3n3u2w) 9105 | -3/Research | Found Prototype Processor 9105 | -3/Research | Identified Exp. Signal Interpreter 9109 | -3/Research | Found Prototype Processor 9109 | -3/Research | Identified Spectral Analyzer 9178 | -3/Research | Core integrity fell below 50% 9230 | -3/Research | Lost 10 parts (1p7n2u) 9263 | -3/Research | Discovered new exit (range 11) 9264 | -3/Research | Core integrity fell below 20% 9279 | -3/Research | Entered Testing 9292 | -3/Testing | Lost 4 parts (1p1n2w) 9432 | -3/Testing | Build established: Mutant 9463 | -3/Testing | Destroyed by P-80 Master with Gamma Rifle Last Messages --------------- 09373_ Acquired Huge Storage Unit. 09378_ K-01 Serf cleans the Antimatter Diverter. 09382_ K-01 Serf cleans the Terminal. 09388_ BTT14RY:W%&CSU N#N7V74QRS3C1NF 09396_ O-24 Administrator: "IFF HANDSHAKE FAILED. SECURING TERMINAL." 09401_ ALERT: Hostiles spotted, dispatching reinforcements to Terminal T004. 09421_ System corrupted: Matter fused (-9). 09437_ Acquired Prototype Device. 09439_ KNEGKU#2D7 Z7 ON%Z|Q 09445_ Critical hit (Burn: +50). 09446_ Adv. Cryofiber Web destroyed. 09449_ Critical hit (Burn: +50). 09457_ Dispersion Rifle destroyed. 09461_ System corrupted: Energy discharge (-120). 09461_ P-80 Master resets P-80 Master, system corruption cleaned. 09462_ Adv. Gravity Neutralizer destroyed. Map ----- +----------------------------------------------------+ | ???????????????????????????????????????????? | | ???????????????????????????????????????????? | | ???????????????????????????????????????????? | | ???????????????????????????????????????????? | | ???????????????????????????????????????????? | | ???????????????????????????????????????????? | | ???????????????????????????????????????????? | | ???????????????????????????????????????????? | | ???????????????????????????????????????????? | | ???????????????????????????????????????????? | | ???????????????????????????????????????????? | | ???????????????????????????????????????????? | | ???????????????????????????????????????????? | | ???????????????????????????????????????????? | | ???????????????????????????????????????????? | | ???????????????????????????????????????????? | | ??????????????????????????????###########??? | | ??????????????????????????????# """ """ #??? | | ????????????????############### """ """ #??? | | ????????????????# # # """ """ #??? | | ????????????????# # """ # #??? | | ????????????????# """ # """ # #??? | | ????????????????# """ # """ # """ """ #??? | | ????????????????# """ # !#?"""S""" #??? | | ????????????????? ?? ??? ????? | | ?????????????# ###@######+######+##+#?????? | | ?????????????+ #?????? | | ?????????????# pppg #?????? | | ?????????????# ### ####+####### #?????? | | ?????????????# ???# ## #??# #?????? | | ?????????????+????# ## """ #??# #?????? | | ??????????????????###### """ #??# #?????? | | ???????????????????????# """ #??# #?????? | | ???????????????????????# #??# #?????? | | ???????????????????????# ! #??# ##????? | | ????????????????################## #????? | | ?????????????? ! #????? | | ?????????????? #????? | | ???????????????????### """ #????? | | ?????????????????????# """ #????? | | ?????????????????????# """ #????? | | ?????????????????????# ###### | | ?????????????????????# """ ## | | ?????????????????????# """ ## " | | ?????????????????????# """ ## "" | | ?????????????????????# ## "" | | ?????????????????##### """ ## "" | | ???????????????? """ # " | | ???????????????? """ # | | ???????????????? + | +----------------------------------------------------+ Best States ------------- Heat Dissipation 64 Coolant Potential 65 Energy Generation 31 Energy Capacity 575 Matter Stores 300 Matter Capacity 300 Sight Range 24 Terrain Scan Density 10 ECM Strength 1 Jamming Range 12 Cloak Strength 3 Additional Mass Support 16 Base Temperature (-) 200 Armor Coverage 2100 Resistance: TH 20 Propulsion Shielding 66 Evasion (%) 76 Recoil Reduction 8 Offensive Hacking 10 Defensive Hacking 10 Item Schematics ----------------- None Robot Schematics ------------------ None Fabricated ------------ Nothing Repaired ---------- Nothing Alien Tech Used ----------------- None Achievements -------------- None Challenges ------------ None Game ------ Seed CoreTransmissionRailgun Manual? 0 Play Time 01:44:31 Cumulative 237.8 hours Start 2025.05.07 @ 13:23:10 End 2025.05.07 @ 15:23:04 Sessions 1 Manual Loads 0 Difficulty Rogue Special Mode None Game No. 355 Rogue 355 Adventurer 0 Explorer 0 Win Type - Total 1 Types 1/0/0/0/0/0/0/0/0/0 Lore% 46 Gallery% 59 Achievement% 43 Wizard Run 0 Options --------- Layout 1 ASCII 0 Keyboard 0 Movement Mouse Keybinds 0 Fullscreen 2 Font 24/Smallcaps Map View 50x35 Zoom Use 0% Tactical HUD 1 Map Filters NONE Filters NONE Steam 1 RUN: 1b213575-867c-49ca-8cc3-2f4283eeb800